[Event "Titled Tuesday Blitz May 30 Early 2023"]
[White "Lopez Del Alamo, Antonio"]
[Black "Vlassov, Nikolai"]
[WhiteFideId "2227339"]
[BlackFideId "4103360"]
[WhiteElo "2175"]
[BlackElo "2324"]
[Result "0-1"]
[Round "01"]
[TimeControl "180+2"]
[Date "2023.05.30"]
[WhiteClock "0:00:24"]
[BlackClock "0:00:10"]

1. e4 {[%clk 0:03:00]}  c5 {[%clk 0:02:57]} 2. Nf3 {[%clk 0:03:00]}  d6 {[%clk 0:02:56]} 3. d4 {[%clk 0:03:00]}  cxd4 {[%clk 0:02:55]} 4. Nxd4 {[%clk 0:03:01]}  Nf6 {[%clk 0:02:54]} 5. Nc3 {[%clk 0:03:01]}  a6 {[%clk 0:02:53]} 6. Be2 {[%clk 0:03:01]}  e5 {[%clk 0:02:46]} 7. Nb3 {[%clk 0:03:01]}  Be6 {[%clk 0:02:45]} 8. Be3 {[%clk 0:03:01]}  Be7 {[%clk 0:02:33]} 9. Nd5 {[%clk 0:03:00]}  Nbd7 {[%clk 0:02:24]} 10. Qd3 {[%clk 0:03:00]}  O-O {[%clk 0:02:11]} 11. Nxe7+ {[%clk 0:02:50]}  Qxe7 {[%clk 0:02:10]} 12. c4 {[%clk 0:02:51]}  Rac8 {[%clk 0:02:07]} 13. Rc1 {[%clk 0:02:49]}  Nc5 {[%clk 0:01:57]} 14. Nxc5 {[%clk 0:02:33]}  dxc5 {[%clk 0:01:56]} 15. O-O {[%clk 0:02:28]}  Rfd8 {[%clk 0:01:56]} 16. Qc2 {[%clk 0:02:23]}  Nd7 {[%clk 0:01:45]} 17. Qc3 {[%clk 0:01:44]}  f6 {[%clk 0:01:42]} 18. f4 {[%clk 0:01:41]}  exf4 {[%clk 0:01:20]} 19. Bxf4 {[%clk 0:01:38]}  Nb8 {[%clk 0:01:15]} 20. e5 {[%clk 0:01:21]}  f5 {[%clk 0:01:15]} 21. Rcd1 {[%clk 0:01:11]}  Nc6 {[%clk 0:01:13]} 22. Rd6 {[%clk 0:01:10]}  Nd4 {[%clk 0:01:11]} 23. Bd3 {[%clk 0:01:02]}  Rxd6 {[%clk 0:00:48]} 24. exd6 {[%clk 0:01:02]}  Qf6 {[%clk 0:00:48]} 25. Re1 {[%clk 0:01:00]}  Qg6 {[%clk 0:00:36]} 26. Bf1 {[%clk 0:00:53]}  b5 {[%clk 0:00:33]} 27. b3 {[%clk 0:00:51]}  b4 {[%clk 0:00:26]} 28. Qd3 {[%clk 0:00:46]}  a5 {[%clk 0:00:20]} 29. g3 {[%clk 0:00:41]}  a4 {[%clk 0:00:19]} 30. Bg2 {[%clk 0:00:40]}  Qf7 {[%clk 0:00:15]} 31. Be5 {[%clk 0:00:39]}  axb3 {[%clk 0:00:13]} 32. axb3 {[%clk 0:00:37]}  Nc6 {[%clk 0:00:10]} 33. Ra1 {[%clk 0:00:33]}  Nxe5 {[%clk 0:00:09]} 34. Qe3 {[%clk 0:00:32]}  Ng6 {[%clk 0:00:07]} 35. Qxe6 {[%clk 0:00:30]}  Qxe6 {[%clk 0:00:07]} 36. Bd5 {[%clk 0:00:31]}  Qxd5 {[%clk 0:00:08]} 37. cxd5 {[%clk 0:00:31]}  Rd8 {[%clk 0:00:08]} 38. Rc1 {[%clk 0:00:31]}  Rxd6 {[%clk 0:00:08]} 39. Rxc5 {[%clk 0:00:31]}  Ne7 {[%clk 0:00:09]} 40. Rb5 {[%clk 0:00:31]}  Nxd5 {[%clk 0:00:09]} 41. Kg2 {[%clk 0:00:30]}  Kf7 {[%clk 0:00:09]} 42. Kf3 {[%clk 0:00:30]}  Ke6 {[%clk 0:00:10]} 43. h3 {[%clk 0:00:30]}  g5 {[%clk 0:00:10]} 44. h4 {[%clk 0:00:28]}  h6 {[%clk 0:00:10]} 45. hxg5 {[%clk 0:00:28]}  hxg5 {[%clk 0:00:11]} 46. Kg2 {[%clk 0:00:28]}  g4 {[%clk 0:00:11]} 47. Kf2 {[%clk 0:00:28]}  Ke5 {[%clk 0:00:11]} 48. Rb8 {[%clk 0:00:28]}  Ke4 {[%clk 0:00:11]} 49. Re8+ {[%clk 0:00:28]}  Kd3 {[%clk 0:00:11]} 50. Rc8 {[%clk 0:00:27]}  Nc3 {[%clk 0:00:10]} 51. Rc5 {[%clk 0:00:24]}  Ne4+ {[%clk 0:00:10]} 0-1


[Site "https://www.chess.com"]

[Event "Titled Tuesday Blitz May 30 Early 2023"]
[White "Hoghmrtsyan, Artur"]
[Black "Rangel, Daniel"]
[WhiteFideId "13306685"]
[BlackFideId "2124475"]
[WhiteElo "2674"]
[BlackElo "2256"]
[Result "0-1"]
[Round "01"]
[TimeControl "180+2"]
[Date "2023.05.30"]
[WhiteClock "0:00:00"]
[BlackClock "0:00:08"]

1. d4 {[%clk 0:02:57]}  Nf6 {[%clk 0:02:59]} 2. c4 {[%clk 0:02:55]}  e6 {[%clk 0:03:00]} 3. Nf3 {[%clk 0:02:55]}  d5 {[%clk 0:03:01]} 4. Nc3 {[%clk 0:02:55]}  Be7 {[%clk 0:02:59]} 5. Bg5 {[%clk 0:02:53]}  Ne4 {[%clk 0:02:51]} 6. Bxe7 {[%clk 0:02:51]}  Qxe7 {[%clk 0:02:52]} 7. Qb3 {[%clk 0:02:50]}  Nxc3 {[%clk 0:02:51]} 8. Qxc3 {[%clk 0:02:50]}  c6 {[%clk 0:02:50]} 9. e3 {[%clk 0:02:49]}  O-O {[%clk 0:02:47]} 10. Bd3 {[%clk 0:02:48]}  b6 {[%clk 0:02:42]} 11. O-O {[%clk 0:02:47]}  Bb7 {[%clk 0:02:40]} 12. a4 {[%clk 0:02:41]}  a5 {[%clk 0:02:37]} 13. Rfc1 {[%clk 0:02:37]}  Na6 {[%clk 0:02:36]} 14. Bb1 {[%clk 0:02:22]}  Nb4 {[%clk 0:02:31]} 15. Ne5 {[%clk 0:02:13]}  Rac8 {[%clk 0:02:09]} 16. c5 {[%clk 0:02:13]}  f6 {[%clk 0:01:50]} 17. Nd3 {[%clk 0:02:09]}  Nxd3 {[%clk 0:01:41]} 18. Bxd3 {[%clk 0:02:10]}  bxc5 {[%clk 0:01:38]} 19. Qxc5 {[%clk 0:02:00]}  Qxc5 {[%clk 0:01:37]} 20. Rxc5 {[%clk 0:02:01]}  Ra8 {[%clk 0:01:37]} 21. Ra3 {[%clk 0:02:00]}  Rfb8 {[%clk 0:01:36]} 22. g3 {[%clk 0:01:58]}  g6 {[%clk 0:01:24]} 23. Rb3 {[%clk 0:01:57]}  Kf7 {[%clk 0:01:23]} 24. Rb6 {[%clk 0:01:43]}  Ke7 {[%clk 0:01:19]} 25. b4 {[%clk 0:01:39]}  axb4 {[%clk 0:01:14]} 26. a5 {[%clk 0:01:38]}  Bc8 {[%clk 0:01:05]} 27. Rbxc6 {[%clk 0:01:34]}  Bd7 {[%clk 0:01:01]} 28. Rc7 {[%clk 0:01:34]}  Kd6 {[%clk 0:00:50]} 29. e4 {[%clk 0:01:19]}  dxe4 {[%clk 0:00:34]} 30. Bxe4 {[%clk 0:01:20]}  Ra6 {[%clk 0:00:26]} 31. Bb7 {[%clk 0:01:19]}  Rxa5 {[%clk 0:00:21]} 32. Rxa5 {[%clk 0:01:00]}  Kxc7 {[%clk 0:00:21]} 33. Be4 {[%clk 0:01:01]}  b3 {[%clk 0:00:20]} 34. d5 {[%clk 0:00:55]}  b2 {[%clk 0:00:18]} 35. Bb1 {[%clk 0:00:55]}  e5 {[%clk 0:00:15]} 36. Ra7+ {[%clk 0:00:10]}  Kd6 {[%clk 0:00:14]} 37. Ra6+ {[%clk 0:00:09]}  Kc5 {[%clk 0:00:12]} 38. d6 {[%clk 0:00:07]}  Bf5 {[%clk 0:00:11]} 39. d7 {[%clk 0:00:00]}  Bxb1 {[%clk 0:00:08]} 0-1


[Site "https://www.chess.com"]

[Event "Titled Tuesday Blitz May 30 Early 2023"]
[White "Urbina Perez, Juan Antonio"]
[Black "Sahib Singh"]
[WhiteFideId "2217368"]
[BlackFideId "25618342"]
[WhiteElo "2197"]
[BlackElo "1934"]
[Result "0-1"]
[Round "01"]
[TimeControl "180+2"]
[Date "2023.05.30"]
[WhiteClock "0:00:33"]
[BlackClock "0:00:30"]

1. e4 {[%clk 0:02:58]}  e6 {[%clk 0:02:51]} 2. d4 {[%clk 0:02:57]}  d5 {[%clk 0:02:47]} 3. Nd2 {[%clk 0:02:57]}  c5 {[%clk 0:02:46]} 4. exd5 {[%clk 0:02:56]}  Qxd5 {[%clk 0:02:39]} 5. Ngf3 {[%clk 0:02:55]}  cxd4 {[%clk 0:02:39]} 6. Bc4 {[%clk 0:02:55]}  Qd6 {[%clk 0:02:38]} 7. O-O {[%clk 0:02:56]}  Nf6 {[%clk 0:02:37]} 8. Nb3 {[%clk 0:02:56]}  Nc6 {[%clk 0:02:38]} 9. Nbxd4 {[%clk 0:02:56]}  Nxd4 {[%clk 0:02:39]} 10. Nxd4 {[%clk 0:02:56]}  a6 {[%clk 0:02:39]} 11. c3 {[%clk 0:02:54]}  Qc7 {[%clk 0:02:38]} 12. Qe2 {[%clk 0:02:54]}  Bd6 {[%clk 0:02:38]} 13. h3 {[%clk 0:02:53]}  O-O {[%clk 0:01:59]} 14. Bd3 {[%clk 0:02:43]}  Bd7 {[%clk 0:01:53]} 15. Re1 {[%clk 0:02:42]}  Rfe8 {[%clk 0:01:52]} 16. Bg5 {[%clk 0:02:40]}  Nd5 {[%clk 0:01:47]} 17. Qh5 {[%clk 0:02:26]}  g6 {[%clk 0:01:46]} 18. Qh4 {[%clk 0:02:16]}  e5 {[%clk 0:01:31]} 19. Nb3 {[%clk 0:02:07]}  f5 {[%clk 0:01:31]} 20. Rad1 {[%clk 0:02:05]}  Be6 {[%clk 0:01:27]} 21. Bc4 {[%clk 0:01:51]}  Nf4 {[%clk 0:01:26]} 22. Bxe6+ {[%clk 0:01:48]}  Nxe6 {[%clk 0:01:27]} 23. Bf6 {[%clk 0:01:42]}  e4 {[%clk 0:01:26]} 24. Nd4 {[%clk 0:01:35]}  Nc5 {[%clk 0:01:17]} 25. Re2 {[%clk 0:01:30]}  Be5 {[%clk 0:01:17]} 26. Bxe5 {[%clk 0:01:29]}  Qxe5 {[%clk 0:01:16]} 27. Nb3 {[%clk 0:01:25]}  Ne6 {[%clk 0:01:13]} 28. Nd4 {[%clk 0:01:17]}  Rad8 {[%clk 0:01:11]} 29. Red2 {[%clk 0:01:16]}  Nc5 {[%clk 0:01:01]} 30. Qg5 {[%clk 0:01:07]}  Rd7 {[%clk 0:00:51]} 31. Nb3 {[%clk 0:01:01]}  Ne6 {[%clk 0:00:44]} 32. Qh6 {[%clk 0:00:57]}  Rxd2 {[%clk 0:00:40]} 33. Rxd2 {[%clk 0:00:57]}  Qf4 {[%clk 0:00:40]} 34. Qxf4 {[%clk 0:00:56]}  Nxf4 {[%clk 0:00:40]} 35. Rd7 {[%clk 0:00:54]}  b6 {[%clk 0:00:40]} 36. Rd6 {[%clk 0:00:50]}  e3 {[%clk 0:00:34]} 37. fxe3 {[%clk 0:00:50]}  Rxe3 {[%clk 0:00:35]} 38. Nd4 {[%clk 0:00:48]}  Re1+ {[%clk 0:00:34]} 39. Kf2 {[%clk 0:00:46]}  Rd1 {[%clk 0:00:33]} 40. Rxb6 {[%clk 0:00:39]}  a5 {[%clk 0:00:33]} 41. h4 {[%clk 0:00:38]}  Rh1 {[%clk 0:00:31]} 42. g3 {[%clk 0:00:37]}  Rh2+ {[%clk 0:00:29]} 43. Ke3 {[%clk 0:00:36]}  Nd5+ {[%clk 0:00:29]} 44. Kd3 {[%clk 0:00:33]}  Nxb6 {[%clk 0:00:30]} 0-1


[Site "https://www.chess.com"]

[Event "Titled Tuesday Blitz May 30 Early 2023"]
[White "Bolourchifard, Farzad"]
[Black "Koridze, Lile"]
[WhiteFideId "12510084"]
[BlackFideId "13612514"]
[WhiteElo "2317"]
[BlackElo "2047"]
[Result "1-0"]
[Round "01"]
[TimeControl "180+2"]
[Date "2023.05.30"]
[WhiteClock "0:00:25"]
[BlackClock "0:01:21"]

1. d4 {[%clk 0:02:55]}  Nf6 {[%clk 0:02:59]} 2. Nf3 {[%clk 0:02:55]}  d5 {[%clk 0:02:58]} 3. c4 {[%clk 0:02:54]}  e6 {[%clk 0:02:59]} 4. Nc3 {[%clk 0:02:52]}  Bb4 {[%clk 0:02:58]} 5. Bg5 {[%clk 0:02:49]}  h6 {[%clk 0:02:58]} 6. Bxf6 {[%clk 0:02:49]}  Qxf6 {[%clk 0:02:58]} 7. e3 {[%clk 0:02:49]}  O-O {[%clk 0:02:58]} 8. cxd5 {[%clk 0:02:43]}  exd5 {[%clk 0:02:58]} 9. Be2 {[%clk 0:02:44]}  c6 {[%clk 0:02:57]} 10. O-O {[%clk 0:02:44]}  Bf5 {[%clk 0:02:55]} 11. Ne5 {[%clk 0:02:41]}  Nd7 {[%clk 0:02:54]} 12. Nxd7 {[%clk 0:02:39]}  Bxd7 {[%clk 0:02:54]} 13. a3 {[%clk 0:02:28]}  Bd6 {[%clk 0:02:53]} 14. b4 {[%clk 0:02:28]}  Qh4 {[%clk 0:02:48]} 15. g3 {[%clk 0:02:28]}  Qh3 {[%clk 0:02:49]} 16. Bf3 {[%clk 0:02:23]}  h5 {[%clk 0:02:49]} 17. Bxh5 {[%clk 0:02:10]}  g6 {[%clk 0:02:49]} 18. Bf3 {[%clk 0:02:10]}  Kg7 {[%clk 0:02:48]} 19. Bg2 {[%clk 0:02:11]}  Qh6 {[%clk 0:02:47]} 20. h4 {[%clk 0:02:06]}  Rh8 {[%clk 0:02:45]} 21. f4 {[%clk 0:02:04]}  Rae8 {[%clk 0:02:44]} 22. e4 {[%clk 0:02:00]}  dxe4 {[%clk 0:02:42]} 23. Nxe4 {[%clk 0:02:01]}  Bc7 {[%clk 0:02:42]} 24. d5 {[%clk 0:01:48]}  Bb6+ {[%clk 0:02:41]} 25. Nc5 {[%clk 0:01:46]}  cxd5 {[%clk 0:02:36]} 26. Qxd5 {[%clk 0:01:36]}  Bc6 {[%clk 0:02:35]} 27. Qd4+ {[%clk 0:01:36]}  Kh7 {[%clk 0:02:34]} 28. Rae1 {[%clk 0:01:36]}  Qh5 {[%clk 0:02:32]} 29. Bxc6 {[%clk 0:01:30]}  bxc6 {[%clk 0:02:33]} 30. Re5 {[%clk 0:01:13]}  Qg4 {[%clk 0:02:31]} 31. Kh2 {[%clk 0:01:07]}  Rd8 {[%clk 0:02:02]} 32. Qc3 {[%clk 0:01:00]}  Rhe8 {[%clk 0:01:49]} 33. Ne4 {[%clk 0:00:47]}  Qe2+ {[%clk 0:01:40]} 34. Rf2 {[%clk 0:00:41]}  Bxf2 {[%clk 0:01:29]} 35. Ng5+ {[%clk 0:00:41]}  Kg8 {[%clk 0:01:26]} 36. Rxe2 {[%clk 0:00:34]}  Rxe2 {[%clk 0:01:26]} 37. Qc4 {[%clk 0:00:34]}  Bg1+ {[%clk 0:01:24]} 38. Kh3 {[%clk 0:00:30]}  Rd5 {[%clk 0:01:21]} 39. Qxe2 {[%clk 0:00:25]} 1-0


[Site "https://www.chess.com"]

[Event "Titled Tuesday Blitz May 30 Early 2023"]
[White "Jeet, Jain"]
[Black "Goswami, Vedant"]
[WhiteFideId "5073022"]
[BlackFideId "5003725"]
[WhiteElo "2067"]
[BlackElo "2011"]
[Result "1-0"]
[Round "01"]
[TimeControl "180+2"]
[Date "2023.05.30"]
[WhiteClock "0:00:17"]
[BlackClock "0:00:00"]

1. Nf3 {[%clk 0:02:54]}  Nc6 {[%clk 0:02:58]} 2. c4 {[%clk 0:02:47]}  e5 {[%clk 0:02:56]} 3. Nc3 {[%clk 0:02:47]}  g6 {[%clk 0:02:53]} 4. g3 {[%clk 0:02:47]}  Bg7 {[%clk 0:02:52]} 5. Bg2 {[%clk 0:02:47]}  h5 {[%clk 0:02:50]} 6. d3 {[%clk 0:02:44]}  d6 {[%clk 0:02:48]} 7. Rb1 {[%clk 0:02:40]}  Nh6 {[%clk 0:02:32]} 8. b4 {[%clk 0:02:38]}  Rb8 {[%clk 0:02:17]} 9. b5 {[%clk 0:02:37]}  Ne7 {[%clk 0:02:10]} 10. Qa4 {[%clk 0:02:34]}  Ra8 {[%clk 0:02:06]} 11. Bd2 {[%clk 0:02:29]}  O-O {[%clk 0:02:06]} 12. O-O {[%clk 0:02:28]}  Nhf5 {[%clk 0:02:01]} 13. e4 {[%clk 0:02:26]}  Nd4 {[%clk 0:01:57]} 14. Nxd4 {[%clk 0:02:26]}  exd4 {[%clk 0:01:57]} 15. Nd5 {[%clk 0:02:23]}  Nxd5 {[%clk 0:01:55]} 16. cxd5 {[%clk 0:02:24]}  h4 {[%clk 0:01:47]} 17. Rfc1 {[%clk 0:02:23]}  Bd7 {[%clk 0:01:47]} 18. Qc4 {[%clk 0:02:11]}  Rc8 {[%clk 0:01:44]} 19. a4 {[%clk 0:02:09]}  hxg3 {[%clk 0:01:27]} 20. hxg3 {[%clk 0:02:08]}  Bg4 {[%clk 0:01:14]} 21. f3 {[%clk 0:01:57]}  Bd7 {[%clk 0:01:12]} 22. Rc2 {[%clk 0:01:57]}  f5 {[%clk 0:01:12]} 23. Bc1 {[%clk 0:01:56]}  fxe4 {[%clk 0:01:06]} 24. dxe4 {[%clk 0:01:57]}  g5 {[%clk 0:00:56]} 25. Bb2 {[%clk 0:01:57]}  Be5 {[%clk 0:00:55]} 26. g4 {[%clk 0:01:45]}  Qf6 {[%clk 0:00:53]} 27. Rd1 {[%clk 0:01:33]}  Bxg4 {[%clk 0:00:50]} 28. Bxd4 {[%clk 0:01:09]}  Bxf3 {[%clk 0:00:46]} 29. Rf2 {[%clk 0:01:01]}  g4 {[%clk 0:00:44]} 30. Bxe5 {[%clk 0:00:58]}  Qxe5 {[%clk 0:00:43]} 31. Rdf1 {[%clk 0:00:52]}  Rf4 {[%clk 0:00:31]} 32. Bxf3 {[%clk 0:00:19]}  gxf3 {[%clk 0:00:28]} 33. Rxf3 {[%clk 0:00:20]}  Qg5+ {[%clk 0:00:25]} 34. Kh2 {[%clk 0:00:21]}  Rh4+ {[%clk 0:00:19]} 35. Rh3 {[%clk 0:00:21]}  Qe5+ {[%clk 0:00:17]} 36. Kg2 {[%clk 0:00:20]}  Rg4+ {[%clk 0:00:17]} 37. Kh1 {[%clk 0:00:19]}  Qxe4+ {[%clk 0:00:11]} 38. Qxe4 {[%clk 0:00:20]}  Rxe4 {[%clk 0:00:11]} 39. Rg3+ {[%clk 0:00:20]}  Kh7 {[%clk 0:00:09]} 40. Kg2 {[%clk 0:00:21]}  Rh4 {[%clk 0:00:07]} 41. Rf7+ {[%clk 0:00:21]}  Kh8 {[%clk 0:00:07]} 42. a5 {[%clk 0:00:20]}  Rh7 {[%clk 0:00:06]} 43. Rf6 {[%clk 0:00:19]}  a6 {[%clk 0:00:05]} 44. b6 {[%clk 0:00:18]}  cxb6 {[%clk 0:00:04]} 45. axb6 {[%clk 0:00:19]}  Rg8 {[%clk 0:00:00]} 46. Rxd6 {[%clk 0:00:17]} 1-0


[Site "https://www.chess.com"]

[Event "Titled Tuesday Blitz May 30 Early 2023"]
[White "Williams, Simon K"]
[Black "Manon-og, Ramon Jr."]
[WhiteFideId "404454"]
[BlackFideId "5200776"]
[WhiteElo "2468"]
[BlackElo "2349"]
[Result "1-0"]
[Round "01"]
[TimeControl "180+2"]
[Date "2023.05.30"]
[WhiteClock "0:00:16"]
[BlackClock "0:00:13"]

1. d4 {[%clk 0:02:59]}  Nf6 {[%clk 0:02:58]} 2. Nc3 {[%clk 0:02:58]}  d5 {[%clk 0:02:58]} 3. Bf4 {[%clk 0:02:57]}  e6 {[%clk 0:02:57]} 4. e3 {[%clk 0:02:57]}  Bb4 {[%clk 0:02:57]} 5. Ne2 {[%clk 0:02:52]}  Ne4 {[%clk 0:02:53]} 6. a3 {[%clk 0:02:45]}  Nxc3 {[%clk 0:02:46]} 7. Nxc3 {[%clk 0:02:42]}  Bxc3+ {[%clk 0:02:46]} 8. bxc3 {[%clk 0:02:42]}  c5 {[%clk 0:02:44]} 9. Qg4 {[%clk 0:02:40]}  O-O {[%clk 0:02:40]} 10. Bd3 {[%clk 0:02:32]}  e5 {[%clk 0:02:26]} 11. Qh5 {[%clk 0:01:56]}  g6 {[%clk 0:02:26]} 12. Qxe5 {[%clk 0:01:56]}  Nc6 {[%clk 0:02:08]} 13. Qd6 {[%clk 0:01:48]}  Qa5 {[%clk 0:01:44]} 14. Qxc5 {[%clk 0:01:46]}  Qxc5 {[%clk 0:01:44]} 15. dxc5 {[%clk 0:01:46]}  a6 {[%clk 0:01:34]} 16. O-O {[%clk 0:01:43]}  Be6 {[%clk 0:01:34]} 17. Rab1 {[%clk 0:01:41]}  Ra7 {[%clk 0:01:00]} 18. Rb6 {[%clk 0:01:34]}  Rc8 {[%clk 0:00:52]} 19. Rfb1 {[%clk 0:01:17]}  Na5 {[%clk 0:00:52]} 20. Bd6 {[%clk 0:01:12]}  Rc6 {[%clk 0:00:37]} 21. f4 {[%clk 0:00:49]}  Rxb6 {[%clk 0:00:36]} 22. Rxb6 {[%clk 0:00:47]}  Nc6 {[%clk 0:00:36]} 23. h3 {[%clk 0:00:43]}  h5 {[%clk 0:00:35]} 24. Kf2 {[%clk 0:00:42]}  Kg7 {[%clk 0:00:26]} 25. e4 {[%clk 0:00:42]}  f6 {[%clk 0:00:22]} 26. Ke3 {[%clk 0:00:40]}  Kf7 {[%clk 0:00:20]} 27. a4 {[%clk 0:00:33]}  Na5 {[%clk 0:00:16]} 28. Be2 {[%clk 0:00:25]}  dxe4 {[%clk 0:00:15]} 29. Kxe4 {[%clk 0:00:24]}  Bf5+ {[%clk 0:00:16]} 30. Kd4 {[%clk 0:00:23]}  Bxc2 {[%clk 0:00:16]} 31. Bf3 {[%clk 0:00:22]}  Bxa4 {[%clk 0:00:16]} 32. Bd5+ {[%clk 0:00:20]}  Kg7 {[%clk 0:00:17]} 33. g4 {[%clk 0:00:17]}  h4 {[%clk 0:00:15]} 34. g5 {[%clk 0:00:17]}  fxg5 {[%clk 0:00:15]} 35. fxg5 {[%clk 0:00:17]}  Bd7 {[%clk 0:00:15]} 36. Be5+ {[%clk 0:00:17]}  Kh7 {[%clk 0:00:16]} 37. Rf6 {[%clk 0:00:17]}  b5 {[%clk 0:00:13]} 38. Rf7+ {[%clk 0:00:16]}  Kg8 {[%clk 0:00:13]} 39. Rg7+ {[%clk 0:00:16]}  Kf8 {[%clk 0:00:13]} 40. Rg8+ {[%clk 0:00:15]}  Ke7 {[%clk 0:00:13]} 41. Bf6# {[%clk 0:00:16]} 1-0


[Site "https://www.chess.com"]

[Event "Titled Tuesday Blitz May 30 Early 2023"]
[White "Sarkar, Justin"]
[Black "Ehlvest, Jaan"]
[WhiteFideId "2010011"]
[BlackFideId "4500016"]
[WhiteElo "2168"]
[BlackElo "2442"]
[Result "0-1"]
[Round "01"]
[TimeControl "180+2"]
[Date "2023.05.30"]
[WhiteClock "0:00:00"]
[BlackClock "0:02:16"]

1. e4 {[%clk 0:02:53]}  g6 {[%clk 0:02:58]} 2. d4 {[%clk 0:02:51]}  Bg7 {[%clk 0:02:58]} 3. Nc3 {[%clk 0:02:50]}  c6 {[%clk 0:02:58]} 4. Nf3 {[%clk 0:02:45]}  d5 {[%clk 0:02:57]} 5. h3 {[%clk 0:02:43]}  Nf6 {[%clk 0:02:57]} 6. e5 {[%clk 0:02:42]}  Ne4 {[%clk 0:02:57]} 7. Nxe4 {[%clk 0:02:40]}  dxe4 {[%clk 0:02:56]} 8. Ng5 {[%clk 0:02:40]}  O-O {[%clk 0:02:52]} 9. Nxe4 {[%clk 0:02:33]}  Bf5 {[%clk 0:02:52]} 10. Ng3 {[%clk 0:02:32]}  Be6 {[%clk 0:02:51]} 11. Be2 {[%clk 0:02:31]}  c5 {[%clk 0:02:51]} 12. c3 {[%clk 0:02:19]}  cxd4 {[%clk 0:02:50]} 13. cxd4 {[%clk 0:02:18]}  Nc6 {[%clk 0:02:50]} 14. Be3 {[%clk 0:02:17]}  Qa5+ {[%clk 0:02:49]} 15. Kf1 {[%clk 0:00:38]}  Rad8 {[%clk 0:02:43]} 16. f4 {[%clk 0:00:37]}  f6 {[%clk 0:02:43]} 17. Bf3 {[%clk 0:00:02]}  fxe5 {[%clk 0:02:40]} 18. fxe5 {[%clk 0:00:00]}  Nxe5 {[%clk 0:02:16]} 0-1


[Site "https://www.chess.com"]

[Event "Titled Tuesday Blitz May 30 Early 2023"]
[White "Dehtiarov, Roman"]
[Black "Goldin, Roman"]
[WhiteFideId "14186640"]
[BlackFideId "2803860"]
[WhiteElo "2189"]
[BlackElo "2312"]
[Result "0-1"]
[Round "01"]
[TimeControl "180+2"]
[Date "2023.05.30"]
[WhiteClock "0:00:00"]
[BlackClock "0:00:20"]

1. c4 {[%clk 0:03:00]}  e5 {[%clk 0:02:59]} 2. Nc3 {[%clk 0:03:00]}  Nf6 {[%clk 0:02:58]} 3. g3 {[%clk 0:03:01]}  d5 {[%clk 0:02:58]} 4. cxd5 {[%clk 0:03:02]}  Nxd5 {[%clk 0:02:58]} 5. Bg2 {[%clk 0:03:02]}  Nb6 {[%clk 0:02:59]} 6. Nf3 {[%clk 0:03:02]}  Nc6 {[%clk 0:02:59]} 7. a3 {[%clk 0:03:02]}  Be7 {[%clk 0:02:58]} 8. O-O {[%clk 0:03:02]}  Be6 {[%clk 0:02:57]} 9. b4 {[%clk 0:03:02]}  a5 {[%clk 0:02:57]} 10. b5 {[%clk 0:02:59]}  Nd4 {[%clk 0:02:57]} 11. Rb1 {[%clk 0:02:37]}  f6 {[%clk 0:02:57]} 12. d3 {[%clk 0:02:30]}  O-O {[%clk 0:02:56]} 13. Nxd4 {[%clk 0:02:29]}  exd4 {[%clk 0:02:56]} 14. Na4 {[%clk 0:02:28]}  Bd5 {[%clk 0:02:55]} 15. Bf4 {[%clk 0:01:46]}  Bxg2 {[%clk 0:02:53]} 16. Kxg2 {[%clk 0:01:47]}  Qd5+ {[%clk 0:02:41]} 17. Kg1 {[%clk 0:01:38]}  Rac8 {[%clk 0:02:24]} 18. Qc2 {[%clk 0:01:00]}  Bxa3 {[%clk 0:01:59]} 19. Bxc7 {[%clk 0:00:25]}  Nxa4 {[%clk 0:01:01]} 20. Qxa4 {[%clk 0:00:26]}  Rxc7 {[%clk 0:01:00]} 21. Qxa3 {[%clk 0:00:25]}  b6 {[%clk 0:01:00]} 22. Rfc1 {[%clk 0:00:20]}  Rfc8 {[%clk 0:01:00]} 23. Rxc7 {[%clk 0:00:07]}  Rxc7 {[%clk 0:01:01]} 24. Qb2 {[%clk 0:00:06]}  Rc3 {[%clk 0:00:51]} 25. e4 {[%clk 0:00:04]}  Qc5 {[%clk 0:00:33]} 26. Qa2+ {[%clk 0:00:04]}  Kf8 {[%clk 0:00:33]} 27. Qe6 {[%clk 0:00:03]}  Rxd3 {[%clk 0:00:31]} 28. h4 {[%clk 0:00:03]}  h5 {[%clk 0:00:30]} 29. Qd7 {[%clk 0:00:02]}  Rc3 {[%clk 0:00:26]} 30. Kg2 {[%clk 0:00:01]}  d3 {[%clk 0:00:19]} 31. Rd1 {[%clk 0:00:00]}  Rc2 {[%clk 0:00:20]} 0-1


[Site "https://www.chess.com"]